bitfinex/quotes_ETHUSD_20250322
["timestamp","ask_amount","ask_price","bid_price","bid_amount"]
[1742636428302,4.99014,2004.0,2003.8,37.127]
[1742636428607,9.98035,2004.0,2003.8,37.127]
[1742636430932,4.99026,2003.9,2003.8,32.37]
[1742636431111,4.99026,2003.9,2003.8,31.123]
[1742636436606,4.99006,2004.0,2003.8,31.9336]
[1742636438595,4.98979,2004.1,2003.8,31.9336]
[1742636438596,4.9899,2004.1,2003.8,31.9336]
[1742636438825,9.9799,2004.1,2003.8,31.9336]
[1742636439227,5.78121,2004.4,2003.9,3.79262923]
[1742636439420,4.98943,2004.3,2003.9,3.8425258]
[1742636439610,9.97842,2004.4,2004.0,5.8182]
[1742636439899,4.98921,2004.4,2004.0,0.8283]
[1742636440124,4.98927,2004.3,2004.1,1.55960292]
[1742636440426,4.98864,2004.6,2004.3,0.8283]
[1742636440726,4.98882,2004.5,2004.3,0.8283]
[1742636442499,9.97736,2004.6,2004.3,0.8283]
[1742636442710,4.98881,2004.5,2004.3,0.8283]
[1742636443725,4.98881,2004.5,2004.3,1.83957693]
[1742636445494,4.98859,2004.6,2004.3,3.53090984]
[1742636445825,0.792,2004.8,2004.3,7.32353907]
[1742636446028,4.98807,2004.8,2004.4,5.35063254]
[1742636446418,4.98829,2004.7,2004.4,0.36185254]
[1742636446618,9.97679,2004.7,2004.4,0.36185254]
[1742636446821,4.98829,2004.7,2004.4,1.2666337]
[1742636447003,4.98802,2004.8,2004.4,0.36185254]
[1742636447323,4.98877,2004.5,2004.4,0.36185254]
[1742636447545,4.98852,2004.6,2004.4,0.36185254]
[1742636447744,4.9882,2004.8,2004.4,0.36185254]
[1742636447898,5.77978,2004.9,2004.5,0.8283]
[1742636448100,5.77978,2004.9,2004.6,5.09213692]
[1742636448299,4.98816,2004.8,2004.6,5.09213692]
[1742636448597,5.77978,2004.9,2004.6,5.09213692]
[1742636448598,4.98778,2004.9,2004.6,5.09213692]
[1742636448817,4.98758,2005.0,2004.6,13.87321615]
[1742636449003,4.98758,2005.0,2004.6,13.87309615]
[1742636449822,4.98758,2005.0,2004.7,0.98839329]
[1742636450222,4.98758,2005.0,2004.8,0.35806323]
[1742636451306,12.97478,2005.1,2004.8,0.35806323]
[1742636451613,7.98729,2005.1,2004.8,1.18636323]
[1742636451813,12.97478,2005.1,2004.8,1.18636323]
[1742636452038,12.97469,2005.1,2004.8,1.18636323]
[1742636452748,4.98755,2005.0,2004.8,1.18636323]
[1742636453335,4.98733,2005.1,2004.8,1.18636323]
[1742636453635,4.98733,2005.1,2004.8,3.85256481]
[1742636454436,4.98753,2005.0,2004.8,3.85256481]
[1742636454634,9.97527,2005.0,2004.8,3.85256481]
[1742636454834,4.98777,2004.9,2004.8,0.35806323]
[1742636455035,4.98777,2004.9,2004.8,5.08806323]
[1742636455405,4.98777,2004.9,2004.8,5.45467428]
[1742636455807,4.98777,2004.9,2004.8,5.45367428]
[1742636456203,6.94137292,2004.9,2004.8,5.08706323]
[1742636456407,6.94137292,2004.9,2004.8,0.35806323]
[1742636457020,7.72217292,2004.9,2004.8,0.35806323]
[1742636457760,4.98827,2004.7,2004.6,4.728]
[1742636457918,4.98827,2004.7,2004.6,5.10828221]
[1742636458522,4.98809,2004.8,2004.6,5.10828221]
[1742636458857,4.98827,2004.7,2004.6,4.729]
[1742636459656,4.98902,2004.4,2004.3,0.36956792]
[1742636460057,4.98902,2004.4,2004.2,0.7597]
[1742636460767,8.76926,2004.7,2004.2,0.7597]
[1742636461173,3.7808,2004.7,2004.3,0.35972853]
[1742636461346,4.98804,2004.8,2004.3,5.34887853]
[1742636461542,8.76872,2004.9,2004.4,4.989]
[1742636461864,4.98792,2004.9,2004.5,5.10641471]
[1742636462024,9.97591,2004.9,2004.5,7.25131324]
[1742636462227,4.98792,2004.9,2004.5,7.25131324]
[1742636462943,4.98754,2005.0,2004.5,12.23997324]
[1742636463131,7.98754,2005.0,2004.5,12.23991324]
[1742636463544,7.98754,2005.0,2004.6,4.98841]
[1742636463755,7.98754,2005.0,2004.7,0.3587037]
[1742636464132,7.98754,2005.0,2004.7,0.7597]
[1742636464332,7.98754,2005.0,2004.8,0.35835688]
[1742636464748,4.98754,2005.0,2004.8,0.35835688]
[1742636465154,7.98754,2005.0,2004.8,0.35835688]
[1742636465374,3.0,2005.0,2004.8,0.35835688]
[1742636465553,4.98728,2005.1,2004.8,0.35835688]
[1742636465757,7.98737,2005.1,2004.8,0.35835688]
[1742636467069,4.98769,2005.0,2004.8,0.35835688]
[1742636467669,4.98814,2004.8,2004.6,32.358]
[1742636467975,9.97635,2004.8,2004.6,32.358]
[1742636468177,4.98827,2004.7,2004.6,32.358]
[1742636469260,4.98807,2004.8,2004.6,26.373]
[1742636470372,9.97628,2004.8,2004.6,26.373]
[1742636470673,4.98827,2004.7,2004.6,26.373]
[1742636471264,4.98827,2004.7,2004.6,26.71151853]
[1742636472279,9.97628,2004.8,2004.6,26.71151853]
[1742636472684,4.98827,2004.7,2004.6,26.71151853]
[1742636473685,4.98827,2004.7,2004.6,0.33851853]
[1742636474561,4.98807,2004.8,2004.6,0.33851853]
[1742636475284,4.98827,2004.7,2004.6,0.33851853]
[1742636475450,5.78577,2004.7,2004.6,0.33851853]
[1742636476965,5.78627,2004.5,2004.4,26.371]
[1742636477286,9.57889923,2004.5,2004.4,26.371]
[1742636477848,12.57889923,2004.5,2004.4,26.371]
[1742636478067,14.83447715,2004.5,2004.4,26.371]
[1742636479665,4.98827,2004.7,2004.4,26.371]
[1742636479666,4.98835,2004.7,2004.4,26.371]
[1742636479958,4.98861,2004.6,2004.4,26.371]
[1742636480157,4.98831,2004.7,2004.4,26.371]
[1742636480689,4.98831,2004.7,2004.5,0.33972911]
[1742636480992,4.79831,2004.7,2004.5,0.33972911]
[1742636481794,4.98804,2004.8,2004.5,0.33972911]
[1742636481996,9.97625,2004.8,2004.5,0.33972911]
[1742636482458,4.98804,2004.8,2004.5,0.33972911]
[1742636482792,4.98804,2004.8,2004.5,5.32846911]
[1742636483995,4.98804,2004.8,2004.5,0.33972911]
[1742636484993,4.9883,2004.7,2004.5,0.33972911]
[1742636487303,4.98804,2004.8,2004.5,5.32846911]
[1742636488068,7.9876,2005.0,2004.6,4.98841]
[1742636488408,12.97523,2005.0,2004.7,6.81160814]
[1742636488572,12.97523,2005.0,2004.7,5.89953131]
[1742636488967,4.9878,2004.9,2004.7,5.89953131]
[1742636489168,4.9878,2004.9,2004.7,5.09013131]
[1742636489403,4.98802,2004.8,2004.7,5.09013131]
[1742636490566,4.98802,2004.8,2004.7,0.33813131]
[1742636490771,5.81782,2004.8,2004.6,4.749]
[1742636491073,5.81782,2004.8,2004.7,0.33813131]
[1742636491595,4.98827,2004.7,2004.6,4.749]
[1742636491794,4.62242923,2004.8,2004.4,26.371]
[1742636492115,4.98877,2004.5,2004.4,31.12]
[1742636492319,4.98871,2004.6,2004.4,31.12]
[1742636492605,4.98871,2004.6,2004.4,26.371]
[1742636492811,4.98871,2004.6,2004.3,4.749]
[1742636492998,4.98877,2004.5,2004.3,4.749]
[1742636493376,4.98877,2004.5,2004.3,4.748]
[1742636493570,4.98913,2004.4,2004.3,4.748]
[1742636495411,4.98927,2004.3,2004.2,26.74564761]
[1742636495617,4.98927,2004.3,2004.2,31.49164761]
[1742636497226,4.98927,2004.3,2004.2,26.372]
[1742636498783,8.76667,2004.3,2004.2,26.372]
[1742636499023,14.89600315,2004.3,2004.2,26.372]
[1742636499200,4.99001,2004.0,2003.9,4.743]
[1742636502751,4.99026,2003.9,2003.8,5.985]
[1742636503054,4.99076,2003.7,2003.6,31.113]
[1742636504132,4.99076,2003.7,2003.6,26.374]
[1742636504331,4.99076,2003.7,2003.6,31.113]
[1742636504759,4.99076,2003.7,2003.6,26.374]
[1742636505843,4.99126,2003.5,2003.4,5.985]
[1742636506250,4.99107,2003.6,2003.4,5.985]
[1742636506410,4.99107,2003.6,2003.4,6.7681]
[1742636507309,4.99107,2003.6,2003.4,0.7831]
[1742636509213,4.99107,2003.6,2003.4,1.16487524]
[1742636513351,4.99077,2003.7,2003.4,1.16487524]
[1742636513528,9.98171,2003.7,2003.4,1.16487524]
[1742636514028,4.99103,2003.6,2003.4,1.16487524]
[1742636514231,4.99077,2003.7,2003.4,1.16487524]
[1742636514429,9.98175,2003.7,2003.4,1.16487524]
[1742636514661,4.99077,2003.7,2003.4,1.16487524]
[1742636514862,9.98176,2003.7,2003.4,1.16487524]
[1742636515866,4.99104,2003.6,2003.4,1.16487524]
[1742636520554,4.99077,2003.7,2003.4,1.16487524]
[1742636520731,4.99104,2003.6,2003.4,1.16487524]
[1742636522766,4.99104,2003.6,2003.4,0.38177524]
[1742636522929,4.99104,2003.6,2003.3,31.37564]
[1742636523961,4.99104,2003.6,2003.3,31.74712383]
[1742636524130,4.99083,2003.7,2003.3,31.74712383]
[1742636524573,4.99032,2003.9,2003.4,3.79262923]
[1742636524867,5.76039,2004.0,2003.6,4.99099]
[1742636525070,5.76039,2004.0,2003.6,9.70999]
[1742636525459,4.99037,2003.9,2003.6,4.719]
[1742636526078,4.99053,2003.8,2003.6,4.719]
[1742636526845,4.99104,2003.6,2003.4,0.98532557]
[1742636527170,4.99104,2003.6,2003.5,5.18058853]
[1742636527671,5.76097,2003.7,2003.5,5.18058853]
[1742636528550,5.76097,2003.7,2003.5,4.719]
[1742636530375,4.99101,2003.6,2003.5,4.719]
[1742636531272,5.76104,2003.7,2003.5,4.719]
[1742636531769,4.99084,2003.7,2003.5,4.719]
[1742636533081,4.99101,2003.6,2003.5,4.719]
[1742636533578,4.99101,2003.6,2003.4,1.20240544]
[1742636533880,4.99101,2003.6,2003.5,4.719]
[1742636537886,4.99101,2003.6,2003.5,5.18162521]
[1742636538077,5.80851,2003.6,2003.5,5.18162521]
[1742636539290,4.99101,2003.6,2003.5,4.719]
[1742636542392,4.99101,2003.6,2003.5,5.18163817]
[1742636544091,0.8175,2003.8,2003.5,4.719]
[1742636544092,5.80805,2003.8,2003.5,4.719]
[1742636544265,5.81587,2004.0,2003.5,10.48196]
[1742636544788,0.8258,2004.0,2003.5,10.48196]
[1742636544998,4.99042,2003.9,2003.5,10.48196]
[1742636545171,9.98089,2003.9,2003.5,10.48196]
[1742636545373,9.98089,2003.9,2003.6,0.46250013]
[1742636546695,9.98089,2003.9,2003.5,10.48196]
[1742636546879,9.98091,2003.9,2003.6,3.79262923]
[1742636547419,4.99052,2003.8,2003.6,3.79262923]
[1742636549109,4.99042,2003.9,2003.6,3.79262923]
[1742636549110,4.99034,2003.9,2003.6,3.79262923]
[1742636549417,9.9808,2003.9,2003.6,3.79262923]
[1742636550221,4.99055,2003.8,2003.6,3.79262923]
[1742636550381,4.99055,2003.8,2003.6,4.78118931]
[1742636550580,4.9895,2004.3,2003.8,4.9903]
[1742636550906,4.98977,2004.1,2003.9,4.718]
[1742636552120,4.99001,2004.0,2003.9,4.718]
[1742636552529,4.98977,2004.1,2003.9,4.718]
[1742636552886,9.97973,2004.1,2003.9,4.718]
[1742636553085,4.98977,2004.1,2003.9,4.718]
[1742636554931,4.98977,2004.1,2003.9,5.09235545]
[1742636557423,4.98977,2004.1,2003.9,31.47435545]
[1742636560219,3.7876,2004.6,2004.0,4.56482923]
[1742636560428,8.77635,2004.6,2004.3,3.79262923]
[1742636560602,8.77635,2004.6,2004.4,4.717]
[1742636560603,4.98878,2004.5,2004.4,4.717]
[1742636563044,4.98835,2004.7,2004.4,4.717]
[1742636563213,0.7876,2005.0,2004.5,4.72081215]
[1742636563413,4.98814,2004.8,2004.5,4.72081215]
[1742636563801,9.97636,2004.8,2004.5,4.72081215]
[1742636564733,4.98814,2004.8,2004.5,4.72081215]
[1742636565322,4.98839,2004.7,2004.5,4.72081215]
[1742636566838,4.98839,2004.7,2004.5,5.09085599]
[1742636569248,4.98852,2004.6,2004.5,0.37004384]
[1742636569628,4.9892,2004.4,2004.2,6.97623091]
[1742636569811,4.9892,2004.4,2004.3,4.717]
[1742636570325,4.98927,2004.3,2004.2,10.702]
[1742636574755,4.98927,2004.3,2004.2,4.717]
[1742636575813,5.75737,2004.3,2004.2,4.717]
[1742636576014,4.98987,2004.1,2003.9,30.54898468]
[1742636576238,4.98987,2004.1,2004.0,4.716]
[1742636576626,4.98987,2004.1,2003.9,30.54898468]
[1742636576821,4.98955,2004.2,2004.0,4.716]
[1742636576822,4.98959,2004.2,2004.0,4.716]
[1742636578253,9.97826,2004.4,2004.0,10.51151]
[1742636578839,5.75699,2004.5,2004.1,4.98967]
[1742636579151,4.98921,2004.4,2004.0,5.5216]
[1742636579351,4.98931,2004.3,2004.0,10.51159]
[1742636579572,4.98931,2004.3,2004.0,5.5216]
[1742636579716,4.98931,2004.3,2004.1,4.716]
[1742636580659,4.98854,2004.6,2004.1,13.49831923]
[1742636580879,4.98883,2004.5,2004.2,5.03936951]
[1742636581371,9.9773,2004.6,2004.2,4.98948]
[1742636581655,4.98877,2004.5,2004.1,13.49830923]
[1742636581875,5.17598966,2005.3,2004.3,3.79262923]
[1742636582021,4.98764,2005.0,2004.8,3.79262923]
[1742636582220,4.98764,2005.0,2004.8,8.50862923]
[1742636582415,9.97467,2005.1,2004.8,4.716]
[1742636582620,9.97466,2005.1,2004.8,4.716]
[1742636582820,4.98757,2005.0,2004.8,4.716]
[1742636583636,7.98733,2005.1,2004.8,4.716]
[1742636584148,5.75532,2005.2,2004.8,17.2729933]
[1742636584352,4.98722,2005.2,2004.8,13.49653923]
[1742636584864,4.98722,2005.2,2004.8,8.73053923]
[1742636585074,4.98649,2005.5,2005.1,0.8056]
[1742636585435,4.98649,2005.5,2005.1,5.84258866]
[1742636585666,4.98649,2005.5,2005.2,5.25488502]
[1742636586075,9.97219,2005.6,2005.3,4.751]
[1742636586373,4.98603,2005.6,2005.3,4.751]
[1742636586680,4.93603,2005.6,2005.3,4.751]
[1742636586873,4.93603,2005.6,2005.3,5.12530489]
[1742636587229,0.7681,2005.8,2005.3,12.0816973]
[1742636587436,10.7396,2005.8,2005.3,12.0816973]
[1742636587758,5.75376,2005.8,2005.3,12.0816873]
[1742636587963,5.75376,2005.8,2005.4,4.98648]
[1742636588360,4.98529,2005.9,2005.5,0.7789]
[1742636588765,4.98567,2005.8,2005.5,0.7789]
[1742636589339,4.98604,2005.6,2005.3,5.90420489]
[1742636589683,5.74093,2005.7,2005.3,5.90420489]
[1742636590952,5.74093,2005.7,2005.3,10.89087489]
[1742636591887,4.98645,2005.5,2005.3,5.12530489]
[1742636592346,4.98645,2005.5,2005.4,4.752]
[1742636593134,4.98601,2005.7,2005.4,4.752]
[1742636593552,4.98601,2005.7,2005.5,0.7789]
[1742636594160,4.98596,2005.7,2005.4,4.752]
[1742636597077,12.53276923,2006.0,2005.4,4.752]
[1742636597377,9.97232,2005.6,2005.4,4.752]
[1742636597570,4.98628,2005.5,2005.4,4.752]
[1742636598981,9.9728,2005.5,2005.3,26.73501662]
[1742636599148,9.9728,2005.5,2005.4,4.743]
[1742636599476,5.74163,2005.4,2005.3,26.365]
[1742636599780,6.73891,2005.4,2005.3,26.365]
[1742636600375,4.98678,2005.3,2005.2,4.744]
[1742636601781,4.9873,2005.1,2005.0,4.744]
[1742636603082,4.98711,2005.2,2005.0,4.744]
[1742636603258,4.98659,2005.4,2005.1,0.7535]
[1742636603458,4.98629,2005.5,2005.1,0.7535]
[1742636603660,0.8091,2005.6,2005.2,8.77951923]
[1742636603661,7.9861,2005.6,2005.2,8.77951923]
[1742636604161,10.16201966,2005.7,2005.3,4.98672]
[1742636604481,5.17598966,2005.7,2005.4,10.49099]
[1742636605189,10.16177966,2005.7,2005.4,5.5045]
[1742636607097,4.98579,2005.7,2005.4,5.5045]
[1742636608896,2.06237692,2005.9,2005.4,4.751]
[1742636609063,5.79538,2005.5,2005.4,4.743]
[1742636609395,0.8091,2005.7,2005.4,4.743]
[1742636609595,0.8091,2005.9,2005.4,8.53562923]
[1742636609893,4.98563,2005.8,2005.4,13.52206923]
[1742636610095,4.98563,2005.8,2005.4,39.88306923]
[1742636611600,0.8091,2006.1,2005.7,0.7535]
[1742636611764,4.98505,2006.0,2005.8,4.76]
[1742636611970,4.98455,2006.2,2005.8,4.76]
[1742636612370,4.9848,2006.1,2005.8,4.76]
[1742636612598,5.79341,2006.3,2005.9,0.26196988]
[1742636612791,4.98455,2006.2,2005.9,0.64119913]
[1742636613100,4.98455,2006.2,2006.0,0.26131401]
[1742636613301,5.79346,2006.3,2005.8,22.04925215]
[1742636613502,5.79346,2006.3,2006.1,0.26096765]
[1742636613805,4.98467,2006.2,2005.8,19.52296923]
[1742636614187,9.96943,2006.2,2005.8,19.52296923]
[1742636614515,9.96945,2006.2,2005.8,19.52296923]
[1742636614814,4.98467,2006.2,2005.8,19.52296923]
[1742636615163,4.98467,2006.2,2005.8,24.50837923]
[1742636615369,4.98467,2006.2,2005.8,19.88897354]
[1742636616014,5.79344,2006.3,2005.9,4.98518]
[1742636616425,10.77795,2006.3,2005.9,4.98518]
[1742636617719,4.98468,2006.2,2005.8,17.06773062]
[1742636617922,4.98468,2006.2,2005.8,22.05321062]
[1742636618604,0.8091,2006.3,2005.9,4.75]
[1742636618806,4.98504,2006.0,2005.9,4.75]
[1742636619706,4.98529,2005.9,2005.8,6.35100431]
[1742636620004,5.81059,2005.9,2005.8,11.10100431]
[1742636620576,5.81059,2005.9,2005.8,6.35100431]
[1742636621244,4.98529,2005.9,2005.8,5.985]
[1742636621703,0.8253,2005.8,2005.4,26.361]
[1742636621904,4.98628,2005.5,2005.4,31.124]
[1742636623447,4.98606,2005.6,2005.4,31.124]
[1742636624335,4.98584,2005.7,2005.4,31.124]
[1742636624542,4.98584,2005.7,2005.4,31.49043072]
[1742636624749,4.98607,2005.6,2005.4,31.49043072]
[1742636624957,4.98607,2005.6,2005.4,35.28305995]
[1742636627224,4.98584,2005.7,2005.4,35.28305995]
[1742636627951,4.98605,2005.6,2005.4,35.28305995]
[1742636628136,4.98584,2005.7,2005.4,31.49043072]
[1742636628433,4.98604,2005.6,2005.4,31.49043072]
[1742636629142,4.98571,2005.8,2005.4,31.49043072]
[1742636629749,4.9858,2005.7,2005.4,31.49043072]
[1742636630126,4.98571,2005.8,2005.4,31.49043072]
[1742636630449,4.98583,2005.7,2005.4,31.49043072]
[1742636630957,5.95158966,2006.2,2005.8,0.8217]
[1742636631153,4.9848,2006.1,2005.9,4.767]
[1742636631329,10.74513,2006.2,2005.9,4.767]
[1742636631521,5.76036,2006.2,2005.9,4.767]
[1742636631721,4.98476,2006.2,2005.9,4.767]
[1742636631959,9.96952,2006.2,2005.9,7.39675682]
[1742636632846,4.98476,2006.2,2005.9,7.39675682]
[1742636633157,4.98481,2006.1,2005.9,7.39675682]
[1742636633459,4.98459,2006.2,2005.9,7.39675682]
[1742636633661,9.96936,2006.2,2005.9,7.39675682]
[1742636634161,9.96927,2006.2,2005.9,7.39675682]
[1742636634654,4.98483,2006.1,2005.9,7.39675682]
[1742636637238,4.98514,2006.0,2005.9,4.756]
[1742636640433,4.98483,2006.1,2005.9,4.756]
[1742636640962,4.98464,2006.2,2005.9,5.5336]
[1742636643366,4.98464,2006.2,2005.9,4.756]
[1742636644368,4.98491,2006.1,2005.9,4.756]
[1742636644862,4.98504,2006.0,2005.9,4.756]
[1742636645642,4.98489,2006.1,2005.9,4.756]
[1742636646566,4.98504,2006.0,2005.9,4.756]
[1742636651870,4.98489,2006.1,2005.9,4.756]
[1742636652443,9.96989,2006.1,2005.9,4.756]
[1742636652742,4.98489,2006.1,2005.9,4.756]
[1742636653176,4.98435,2006.3,2005.9,13.58363774]
[1742636653381,4.98457,2006.2,2005.9,8.54862923]
[1742636653588,4.98457,2006.2,2006.0,0.7723]
[1742636653878,9.96879,2006.3,2006.0,0.7723]
[1742636654244,7.98393,2006.5,2006.1,8.77731923]
[1742636654447,7.98393,2006.5,2006.1,5.72169515]
[1742636654448,4.98419,2006.4,2006.1,5.72169515]
[1742636654646,4.9838,2006.5,2006.3,0.7723]
[1742636654847,5.1033558,2006.6,2006.4,4.738]
[1742636655268,0.1197358,2006.6,2006.4,4.738]
[1742636655474,0.1197358,2006.6,2006.4,6.96465107]
[1742636655861,5.1032958,2006.6,2006.4,6.96465107]
[1742636656261,0.1197358,2006.6,2006.4,6.96465107]
[1742636656778,5.1033258,2006.6,2006.4,7.33448986]
[1742636657284,0.1197358,2006.6,2006.4,7.33448986]
[1742636657687,5.1032858,2006.6,2006.4,7.33448986]
[1742636658811,4.9838,2006.5,2006.4,7.33448986]
[1742636659009,4.9838,2006.5,2006.4,5.10783879]
[1742636659304,4.98429,2006.3,2006.2,5.985]
[1742636659502,4.98429,2006.3,2006.2,10.725]
[1742636659702,4.98429,2006.3,2006.2,4.74]
[1742636660286,4.98429,2006.3,2006.2,5.11571864]
[1742636660673,6.06271,2006.3,2006.2,4.738]
[1742636660988,5.80034,2006.2,2006.0,4.738]
[1742636661190,4.98479,2006.1,2006.0,4.738]
[1742636661752,4.98529,2005.9,2005.8,26.351]
[1742636661958,4.98529,2005.9,2005.8,31.45866564]
[1742636662192,4.98506,2006.0,2005.8,31.45866564]
[1742636662489,4.98529,2005.9,2005.8,26.351]
[1742636662689,5.80109,2005.9,2005.8,26.351]
[1742636662899,4.98579,2005.7,2005.6,5.985]
[1742636663704,4.98603,2005.6,2005.5,4.741]
[1742636664056,4.98556,2005.8,2005.5,8.53362923]
[1742636664457,4.98556,2005.8,2005.6,4.74]
[1742636664885,9.97134,2005.8,2005.6,4.739]
[1742636665392,4.98579,2005.7,2005.5,4.16501663]
[1742636665697,4.98579,2005.7,2005.6,4.738]
[1742636666785,4.98556,2005.8,2005.6,4.738]
[1742636667386,4.98579,2005.7,2005.6,4.738]
[1742636667789,4.98603,2005.6,2005.5,26.352]
[1742636670668,11.17166723,2005.6,2005.5,26.352]
[1742636670874,14.17166723,2005.6,2005.5,26.352]
[1742636671574,10.379038,2005.6,2005.5,26.352]
[1742636671803,0.8157,2005.6,2005.1,4.736]
[1742636672101,4.98628,2005.5,2005.4,3.79262923]
[1742636672975,4.98597,2005.7,2005.4,4.57702923]
[1742636673293,4.98604,2005.6,2005.5,4.761]
[1742636673494,4.98597,2005.7,2005.5,4.761]
[1742636674119,9.97198,2005.7,2005.5,4.761]
[1742636674321,4.98597,2005.7,2005.6,0.26230444]
[1742636675918,4.98597,2005.7,2005.6,5.01930444]
[1742636676115,4.98597,2005.7,2005.6,4.757]
[1742636676319,4.98597,2005.7,2005.6,5.01930444]
[1742636677124,4.98597,2005.7,2005.6,0.26230444]
[1742636677301,14.47155623,2005.7,2005.6,0.26230444]
[1742636677491,5.80198,2005.5,2005.4,26.358]
[1742636681474,5.857493,2005.5,2005.4,26.358]
[1742636684290,5.041793,2005.5,2005.4,26.358]
[1742636686186,4.98674,2005.4,2005.1,3.79262923]
[1742636686591,4.98688,2005.3,2005.0,37.9377]
[1742636686817,4.98713,2005.2,2005.0,37.9377]
[1742636690723,9.97439,2005.2,2005.0,37.9377]
[1742636690898,4.98728,2005.1,2005.0,37.107]
[1742636691929,4.98728,2005.1,2005.0,31.122]
[1742636692299,4.98728,2005.1,2005.0,26.361]
[1742636692505,4.98728,2005.1,2005.0,31.103]
[1742636692730,4.98728,2005.1,2005.0,26.361]
[1742636692932,6.791021,2005.1,2005.0,26.361]
[1742636693623,9.791021,2005.1,2005.0,26.361]
[1742636694017,4.98852,2004.6,2004.5,5.985]
[1742636694220,4.98852,2004.6,2004.5,4.745]
[1742636699743,3.79262923,2005.0,2004.5,5.5208]
[1742636699744,0.7682,2005.0,2004.5,5.5208]
[1742636700036,4.98805,2004.8,2004.5,5.5208]
[1742636701638,4.98781,2004.9,2004.5,9.31342923]
[1742636702047,4.98805,2004.8,2004.5,9.31342923]
[1742636702403,4.9882,2004.8,2004.5,9.31342923]
[1742636702801,3.0,2005.1,2004.7,3.79262923]
[1742636703006,4.98754,2005.0,2004.7,8.78066923]
[1742636703319,4.98754,2005.0,2004.7,3.79262923]
[1742636703648,9.97529,2005.0,2004.7,3.79262923]
[1742636704050,4.98779,2004.9,2004.6,6.7608]
[1742636705962,9.97574,2004.9,2004.6,6.7608]
[1742636706152,4.98779,2004.9,2004.6,6.7608]
[1742636706821,4.98779,2004.9,2004.6,11.74931]
[1742636707218,7.98751,2005.1,2004.6,11.74931]
[1742636707447,7.98751,2005.1,2004.6,11.74912]
[1742636707652,4.98766,2005.0,2004.7,2.02867492]
[1742636707971,4.9878,2004.9,2004.7,2.02867492]
[1742636708626,4.98804,2004.8,2004.6,6.7608]
[1742636709125,9.97531,2005.0,2004.6,11.74919]
[1742636710540,4.98759,2005.0,2004.6,11.74919]
[1742636711666,0.7682,2005.3,2004.8,0.7835]
[1742636711877,0.7682,2005.3,2004.9,8.53062923]
[1742636711878,4.98695,2005.3,2004.9,8.53062923]
[1742636712059,4.98695,2005.3,2004.9,10.85932315]
[1742636712377,4.98695,2005.3,2004.9,15.84706315]
[1742636713864,4.98695,2005.3,2004.9,16.83452137]
[1742636714085,4.98654,2005.4,2005.0,5.77087]
[1742636714278,4.98654,2005.4,2005.0,5.82073906]
[1742636714479,4.98654,2005.4,2005.1,1.76675204]
[1742636714859,5.041803,2005.5,2005.2,26.367]
[1742636715162,5.041803,2005.5,2005.3,4.739]
[1742636715975,0.055513,2005.5,2005.3,4.739]
[1742636716134,0.055513,2005.5,2005.3,5.5225]
[1742636716335,5.041813,2005.5,2005.3,5.5225]
[1742636716815,0.055513,2005.5,2005.3,5.5225]
[1742636717322,0.055513,2005.5,2005.3,12.31989141]
[1742636717620,0.055513,2005.5,2005.2,26.367]
[1742636717621,0.8117,2005.4,2005.2,26.367]
[1742636717918,4.98678,2005.3,2005.2,26.367]
[1742636718128,5.79848,2005.3,2005.2,26.367]
[1742636718289,12.59110923,2005.3,2005.2,26.367]
[1742636718894,8.79848,2005.3,2005.2,26.367]
[1742636719096,4.98749,2005.1,2004.7,5.985]
[1742636719307,4.98766,2005.0,2004.9,4.745]
[1742636723055,4.9871,2005.2,2004.9,4.745]
[1742636723231,4.9871,2005.2,2004.9,5.5029]
[1742636723923,0.8265,2005.4,2005.0,3.79262923]
[1742636724128,5.041983,2005.5,2005.1,5.91665292]
[1742636724304,5.041963,2005.5,2005.2,4.55052923]
[1742636724514,5.041963,2005.5,2005.3,4.745]
[1742636724838,10.028463,2005.5,2005.3,4.745]
[1742636725041,4.98653,2005.4,2005.3,4.745]
[1742636727027,0.055513,2005.5,2005.3,4.745]
[1742636727937,5.041813,2005.5,2005.3,4.745]
[1742636729344,0.055513,2005.5,2005.3,4.745]
[1742636729514,0.055513,2005.5,2005.3,12.35105492]
[1742636730040,0.055513,2005.5,2005.3,18.33605492]
[1742636734828,0.055513,2005.5,2005.3,13.34948492]
[1742636735443,5.041853,2005.5,2005.3,10.73]
[1742636735628,5.861253,2005.5,2005.3,10.73]
[1742636735824,4.98653,2005.4,2005.1,6.7533]
[1742636736030,4.98679,2005.3,2005.1,6.7533]
[1742636736231,4.98679,2005.3,2005.2,4.735]
[1742636737260,4.98703,2005.2,2005.1,5.985]
[1742636737439,4.98703,2005.2,2005.1,10.719]
[1742636737858,4.98703,2005.2,2005.1,10.98410342]
[1742636740566,4.98679,2005.3,2005.1,10.98410342]
[1742636740861,0.874913,2005.5,2005.1,10.98410342]
[1742636740862,0.055513,2005.5,2005.4,4.98653]
[1742636741033,0.055513,2005.5,2005.4,0.26445902]
[1742636741628,5.041793,2005.5,2005.4,0.26445902]
[1742636741830,6.1203263,2005.5,2005.4,4.733]
[1742636742230,5.041793,2005.5,2005.4,4.99745902]
[1742636745370,5.873993,2005.5,2005.4,0.26445902]
[1742636745832,4.98678,2005.3,2005.2,31.097]
[1742636746638,4.98678,2005.3,2005.2,4.734]
[1742636747661,4.98655,2005.4,2005.2,4.734]
[1742636748043,0.055513,2005.5,2005.3,3.79262923]
[1742636749175,5.041843,2005.5,2005.3,3.79262923]
[1742636749376,5.041843,2005.5,2005.2,4.734]